bitfinex-derivatives/quotes_ETHF0:USTF0_20210402
["timestamp","ask_amount","ask_price","bid_price","bid_amount"]
[1617340614506,67.33312671,1995.4,1995.3,2.90695]
[1617340615008,66.39765,1995.4,1995.3,2.90695]
[1617340617111,67.33315538,1995.4,1995.3,2.90695]
[1617340620112,66.39765,1995.4,1995.3,2.90695]
[1617340620512,67.09955512,1995.4,1995.3,2.90695]
[1617340621317,66.39765,1995.4,1995.3,2.90695]
[1617340622515,67.09983515,1995.4,1995.3,2.90695]
[1617340622815,67.09983515,1995.4,1995.3,4.59205]
[1617340623014,64.19288515,1995.4,1995.3,4.59205]
[1617340623215,63.4907,1995.4,1995.3,4.59205]
[1617340624115,63.4907,1995.4,1995.3,2.90695]
[1617340624717,64.19286303,1995.4,1995.3,2.90695]
[1617340627117,67.09981303,1995.4,1995.3,2.90695]
[1617340630522,67.3331598,1995.4,1995.3,2.90695]
[1617340630922,66.39765,1995.4,1995.3,2.90695]
[1617340633625,67.56712291,1995.4,1995.3,2.90695]
[1617340634627,67.56712291,1995.4,1995.3,0.43445]
[1617340634827,66.39765,1995.4,1995.3,0.43445]
[1617340639935,67.56641116,1995.4,1995.3,0.43445]
[1617340644544,66.39765,1995.4,1995.3,0.43445]
[1617340645446,68.45082964,1995.4,1995.3,0.43445]
[1617340647552,66.39765,1995.4,1995.3,0.43445]
[1617340648752,68.45199743,1995.4,1995.3,0.43445]
[1617340649752,66.39765,1995.4,1995.3,0.43445]
[1617340650754,68.4516608,1995.4,1995.3,0.43445]
[1617340650954,70.4516608,1995.4,1995.3,0.43445]
[1617340651556,68.4516608,1995.4,1995.3,0.43445]
[1617340653155,68.4516608,1995.4,1995.1,2.90695]
[1617340653455,2.7087436,1995.3,1995.1,2.90695]
[1617340654256,0.93795569,1995.2,1995.1,2.90695]
[1617340654456,0.50476607,1995.2,1995.1,2.90695]
[1617340655056,3.41171607,1995.2,1995.1,2.90695]
[1617340655357,4.07912341,1995.2,1995.1,2.90695]
[1617340655556,3.4114055,1995.2,1995.1,2.90695]
[1617340655956,4.58294009,1995.2,1995.1,2.90695]
[1617340658760,3.4114055,1995.2,1995.1,2.90695]
[1617340660466,4.58385128,1995.2,1995.1,2.90695]
[1617340663770,3.4114055,1995.2,1995.1,2.90695]
[1617340674886,8.71431059,1995.2,1995.1,2.90695]
[1617340676688,8.71431059,1995.2,1993.4,2.0]
[1617340676888,81.672,1994.0,1993.2,30.0]
[1617340677088,83.3275,1994.0,1993.2,30.0]
[1617340677288,83.3275,1994.0,1993.9,2.90695]
[1617340677690,84.50426103,1994.0,1993.9,2.90695]
[1617340678092,83.3275,1994.0,1993.9,2.90695]
[1617340679292,86.23445,1994.0,1993.9,2.90695]
[1617340679893,4.56245,1994.0,1993.9,2.90695]
[1617340680093,4.56245,1994.0,1993.9,71.95085]
[1617340680493,2.90695,1994.0,1993.9,71.95085]
[1617340681099,5.85751545,1994.0,1993.9,71.95085]
[1617340681702,2.90695,1994.0,1993.9,71.95085]
[1617340682102,16.99245,1994.0,1993.9,71.95085]
[1617340686209,18.17001926,1994.0,1993.9,71.95085]
[1617340686408,16.99245,1994.0,1993.9,71.95085]
[1617340688210,14.0855,1994.0,1993.9,71.95085]
[1617340688413,15.26308396,1994.0,1993.9,71.95085]
[1617340688611,14.0855,1994.0,1993.9,71.95085]
[1617340692516,16.15192282,1994.0,1993.9,71.95085]
[1617340693416,19.05887282,1994.0,1993.9,71.95085]
[1617340693618,19.05887282,1994.0,1993.9,2.90695]
[1617340694017,20.93067282,1994.0,1993.0,78.9165]
[1617340694418,0.94151142,1993.2,1992.1,30.0]
[1617340694616,2.41001142,1993.2,1992.8,78.4436]
[1617340694819,0.70601998,1992.9,1992.8,78.4436]
[1617340695418,0.70601998,1992.9,1992.8,81.35055]
[1617340697019,1.48134496,1993.0,1992.8,81.35055]
[1617340697920,14.4017,1993.1,1992.8,81.35055]
[1617340699020,14.4017,1993.1,1992.8,78.4436]
[1617340699423,2.90695,1992.9,1992.8,81.35055]
[1617340702327,2.90695,1992.9,1992.8,2.90695]
[1617340702528,59.95065,1992.9,1992.8,2.90695]
[1617340702931,2.90695,1992.9,1992.8,2.90695]
[1617340703130,14.4017,1993.1,1992.8,2.90695]
[1617340703329,14.4017,1993.1,1992.8,4.13775]
[1617340703530,14.4017,1993.1,1993.0,2.90695]
[1617340704335,14.4017,1993.1,1993.0,4.90695]
[1617340704533,14.4017,1993.1,1993.0,2.90695]
[1617340706942,14.4017,1993.1,1992.2,2.0]
[1617340707140,83.8677,1992.9,1992.2,2.0]
[1617340707443,86.77465,1992.9,1992.6,2.90695]
[1617340709443,86.77465,1992.9,1992.8,2.90695]
[1617340709641,86.77465,1992.9,1992.2,2.0]
[1617340710041,86.77465,1992.9,1992.2,32.0]
[1617340711442,86.77465,1992.9,1992.8,2.90695]
[1617340712644,2.90695,1992.9,1992.8,2.90695]
[1617340714447,83.19155,1992.9,1992.8,2.90695]
[1617340715948,83.19155,1992.9,1991.9,73.2991]
[1617340716751,83.19155,1992.9,1991.9,71.2991]
[1617340716952,85.03965,1992.9,1991.9,71.2991]
[1617340717551,82.1327,1992.9,1992.5,2.90695]
[1617340717951,80.2846,1992.9,1992.5,2.90695]
[1617340719654,2.90695,1992.6,1992.5,2.90695]
[1617340723862,14.4017,1993.1,1992.6,73.8061]
[1617340724063,14.4017,1993.1,1992.6,75.1665]
[1617340725663,14.4017,1993.1,1993.0,2.90695]
[1617340726063,14.4017,1993.1,1993.0,4.34345]
[1617340727666,13.4,1993.1,1993.0,4.34345]
[1617340730267,13.4,1993.1,1993.0,66.49995]
[1617340732269,13.4,1993.1,1993.0,98.49995]
[1617340734072,13.4,1993.1,1993.0,96.49995]
[1617340734682,12.3983,1993.1,1993.0,96.49995]
[1617340740382,12.3983,1993.1,1993.0,34.34345]
[1617340741784,11.3966,1993.1,1993.0,36.34345]
[1617340741984,11.3966,1993.1,1993.0,37.34275]
[1617340742184,10.6128,1993.1,1993.0,37.34275]
[1617340742384,0.70366937,1994.4,1993.2,30.0]
[1617340742584,0.70366937,1994.4,1993.4,30.0]
[1617340742785,2.90695,1994.5,1993.6,30.0]
[1617340742985,0.70363715,1994.6,1993.8,30.0]
[1617340743188,0.70361844,1994.5,1993.8,30.0]
[1617340743586,0.70357843,1994.8,1993.8,30.0]
[1617340743786,0.70357843,1994.8,1994.4,2.90695]
[1617340743986,0.70355971,1994.9,1994.4,4.86345]
[1617340745690,0.70355971,1994.9,1994.8,2.90695]
[1617340746389,1.46511799,1995.0,1994.8,2.90695]
[1617340746788,0.52718671,1994.9,1994.8,2.90695]
[1617340747389,57.70188671,1994.9,1994.8,2.90695]
[1617340747589,57.1747,1994.9,1994.8,2.90695]
[1617340747789,60.08165,1994.9,1994.8,2.90695]
[1617340747990,60.60883844,1994.9,1994.8,2.90695]
[1617340748792,59.60713844,1994.9,1993.9,80.2149]
[1617340748992,60.54519815,1994.9,1993.9,80.2149]
[1617340749192,0.70354905,1994.7,1993.9,110.2149]
[1617340749792,3.61049905,1994.7,1994.6,2.90695]
[1617340750295,4.13774736,1994.7,1994.6,2.90695]
[1617340752406,61.76544736,1994.7,1994.6,2.90695]
[1617340752605,4.13774736,1994.7,1994.6,2.90695]
[1617340752814,1.23079736,1994.7,1994.6,60.50635]
[1617340753002,0.70353757,1994.8,1994.6,60.50635]
[1617340754007,0.70415483,1994.7,1994.6,60.50635]
[1617340754617,0.70361248,1994.9,1994.6,60.50635]
[1617340755006,14.73459868,1995.0,1994.6,90.50635]
[1617340755208,14.73459868,1995.0,1994.6,32.90695]
[1617340755805,13.73289868,1995.0,1994.9,2.90695]
[1617340756006,13.73289868,1995.0,1994.9,77.62015]
[1617340757108,13.0293,1995.0,1994.9,77.62015]
[1617340759916,13.73286975,1995.0,1994.9,77.62015]
[1617340760514,13.0293,1995.0,1994.9,77.62015]
[1617340762715,12.0276,1995.0,1994.9,77.62015]
[1617340764519,12.73160323,1995.0,1994.9,77.62015]
[1617340764920,12.0276,1995.0,1994.9,77.62015]
[1617340769826,11.0259,1995.0,1994.9,77.62015]
[1617340773732,11.0259,1995.0,1994.9,34.55205]
[1617340774732,11.0259,1995.0,1994.9,36.55205]
[1617340776737,10.0242,1995.0,1994.9,36.55205]
[1617340782539,10.0242,1995.0,1994.9,34.55205]
[1617340783741,9.0225,1995.0,1994.9,34.55205]
[1617340790850,8.0208,1995.0,1994.9,34.55205]
[1617340791052,8.0208,1995.0,1994.9,4.55205]
[1617340791251,8.0208,1995.0,1994.9,2.90695]
[1617340792051,8.0208,1995.0,1994.9,32.90695]
[1617340795657,8.0208,1995.0,1994.9,2.90695]
[1617340797760,8.0208,1995.0,1994.9,32.90695]
[1617340801363,8.0208,1995.0,1994.9,34.90695]
[1617340802263,8.0208,1995.0,1994.9,32.90695]
[1617340802664,8.0208,1995.0,1994.9,2.90695]
[1617340806470,8.0208,1995.0,1994.9,32.90695]
[1617340811372,0.0585659,1995.2,1994.9,32.90695]
[1617340811573,0.0585659,1995.2,1994.9,34.40605]
[1617340811973,0.69711124,1995.9,1994.9,34.40605]
[1617340812173,0.69711124,1995.9,1995.7,62.1108]
[1617340812374,0.69711124,1995.9,1995.8,2.90695]
[1617340812975,0.53886968,1995.9,1995.8,2.90695]
[1617340814075,0.5341985,1996.1,1995.8,2.90695]
[1617340814275,2.571,1996.2,1996.0,2.90695]
[1617340814477,2.571,1996.2,1996.1,73.6618]
[1617340814676,2.571,1996.2,1996.1,75.1366]
[1617340815977,2.571,1996.2,1996.1,1.4748]
[1617340816178,2.571,1996.2,1996.0,85.88155]
[1617340816579,2.571,1996.2,1996.0,82.9746]
[1617340816779,0.52934946,1996.1,1996.0,82.9746]
[1617340816980,2.52934946,1996.1,1996.0,82.9746]
[1617340818383,5.43629946,1996.1,1996.0,85.88155]
[1617340818882,4.43499946,1996.1,1996.0,85.88155]
[1617340819083,2.90695,1996.1,1996.0,85.88155]
[1617340820584,2.571,1996.2,1996.0,85.88155]
[1617340820785,1.17344556,1996.1,1996.0,85.88155]
[1617340821184,3.74443566,1996.2,1996.0,85.88155]
[1617340822085,1.17345014,1996.1,1996.0,85.88155]
[1617340824390,7.53456183,1996.2,1996.0,85.88155]
[1617340825894,6.53326183,1996.2,1996.0,85.88155]
[1617340826296,1.17351172,1996.1,1996.0,85.88155]
[1617340826693,1.17351172,1996.1,1996.0,2.90695]
[1617340827494,4.96355805,1996.2,1996.0,2.90695]
[1617340827895,1.17349326,1996.1,1996.0,2.90695]
[1617340828899,4.96363197,1996.2,1995.9,62.1706]
[1617340829096,1.9233,1996.1,1995.9,62.1706]
[1617340829698,1.17357169,1996.0,1995.9,62.1706]
[1617340830498,4.08052169,1996.0,1995.9,65.07755]
[1617340831501,4.83835,1996.0,1995.9,2.90695]
[1617340831699,4.83835,1996.0,1994.5,30.0]
[1617340831900,61.3769,1995.8,1995.0,61.3769]
[1617340832101,63.9479,1995.8,1995.0,61.3769]
[1617340832300,1.17718408,1995.4,1995.0,61.3769]
[1617340832499,2.91278408,1995.4,1995.3,2.90695]
[1617340832900,1.91148408,1995.4,1995.3,2.90695]
[1617340833502,2.06292319,1995.7,1995.6,74.4577]
[1617340834302,5.51677027,1995.8,1995.6,74.4577]
[1617340834502,5.51677027,1995.8,1995.7,2.90695]
[1617340838205,5.51677027,1995.8,1995.0,30.0]
[1617340838405,4.16,1995.8,1995.5,2.90695]
[1617340838605,4.16,1995.8,1995.7,74.4344]
[1617340839705,2.571,1995.8,1995.7,74.4344]
[1617340839905,1.5697,1995.8,1995.7,74.4344]
[1617340840307,4.51562757,1995.8,1995.7,74.4344]
[1617340840508,5.85287757,1995.8,1995.7,74.4344]
[1617340842309,2.90695,1995.8,1995.7,74.4344]
[1617340844413,2.90695,1995.8,1995.7,77.34135]
[1617340845614,2.90695,1995.8,1995.7,74.4344]
[1617340847015,1.90565,1995.8,1995.7,74.4344]
[1617340848016,6.03353504,1995.8,1995.7,74.4344]
[1617340848515,6.03353504,1995.8,1995.7,77.34135]
[1617340852026,1.90565,1995.8,1995.7,77.34135]
[1617340852425,6.03357082,1995.8,1995.7,77.34135]
[1617340854028,5.03227082,1995.8,1995.7,77.34135]
[1617340854829,6.21679288,1995.8,1995.7,77.34135]
[1617340855428,6.72701412,1995.8,1995.7,2.90695]
[1617340855829,90.56321412,1995.8,1995.7,2.90695]
[1617340856331,98.4970333,1995.8,1995.7,2.90695]
[1617340856530,100.1253333,1995.8,1995.7,2.90695]
[1617340857933,98.4970333,1995.8,1995.7,2.90695]
[1617340858132,93.18459042,1995.8,1995.7,2.90695]
[1617340858931,98.49722675,1995.8,1995.7,2.90695]
[1617340860132,93.18459042,1995.8,1995.7,2.90695]
[1617340860933,92.18329042,1995.8,1995.7,2.90695]
[1617340861933,98.67637704,1995.8,1995.7,2.90695]
[1617340862639,101.58332704,1995.8,1995.7,2.90695]
[1617340864536,95.09024042,1995.8,1995.7,2.90695]
[1617340864736,95.09024042,1995.8,1995.5,2.90695]
[1617340865239,13.7542216,1995.7,1995.5,2.90695]
[1617340866737,2.90695,1995.6,1995.5,2.90695]
[1617340867337,3.4168331,1995.6,1995.5,2.90695]
[1617340867736,8.73033727,1995.6,1995.5,2.90695]
[1617340867939,7.72903727,1995.6,1995.5,2.90695]
[1617340872446,2.4155331,1995.6,1995.5,2.90695]
[1617340874446,8.91021326,1995.6,1995.5,2.90695]
[1617340874647,4.4155331,1995.6,1995.5,2.90695]
[1617340875046,3.4142331,1995.6,1995.5,2.90695]
[1617340876046,1.4142331,1995.6,1995.5,2.90695]
[1617340876647,7.90362361,1995.6,1995.5,2.90695]
[1617340877048,0.90435,1995.6,1995.5,2.90695]
[1617340877247,1.41394927,1995.6,1995.5,2.90695]
[1617340877647,9.34067839,1995.6,1995.5,2.90695]
[1617340880354,14.64964872,1995.6,1995.5,2.90695]
[1617340880754,9.34067839,1995.6,1995.5,2.90695]
[1617340886864,8.43632839,1995.6,1994.3,69.004]
[1617340887262,8.43632839,1995.6,1995.5,2.90695]
[1617340888361,5.30742215,1995.6,1995.5,2.90695]
[1617340889464,8.21437215,1995.6,1995.5,2.90695]
[1617340889964,8.7238398,1995.6,1995.5,2.90695]
[1617340899475,3.41641765,1995.6,1995.5,2.90695]
[1617340899875,4.40881765,1995.6,1995.5,2.90695]
[1617340900075,3.41641765,1995.6,1995.5,2.90695]
[1617340903177,4.99791765,1995.6,1995.5,2.90695]
[1617340903777,10.30304172,1995.6,1995.5,2.90695]
[1617340904179,7.39609172,1995.6,1995.4,65.3465]
[1617340904479,0.50974127,1995.5,1995.4,65.3465]
[1617340904881,4.63653141,1995.5,1995.4,65.3465]
[1617340905484,4.12679014,1995.5,1995.4,68.25345]
[1617340906083,4.12679014,1995.5,1995.4,2.90695]
[1617340906286,6.51672556,1995.5,1995.4,2.90695]
[1617340907886,10.39843846,1995.5,1995.4,2.90695]
[1617340908086,9.39683846,1995.5,1995.4,2.90695]
[1617340908288,13.52357298,1995.5,1995.4,2.90695]
[1617340908486,14.52807298,1995.5,1995.4,2.90695]
[1617340908687,12.13523756,1995.5,1995.4,32.90695]
[1617340908886,2.571,1996.0,1995.4,32.90695]
[1617340908887,2.06443159,1995.6,1995.4,32.90695]
[1617340909087,2.06443159,1995.6,1995.5,80.7341]
[1617340909287,1.17774492,1995.7,1995.5,108.7341]
[1617340909487,1.17774492,1995.7,1995.6,2.0]
[1617340909687,0.94215926,1995.8,1995.6,34.90695]
[1617340910288,3.27627265,1996.0,1995.6,34.90695]
[1617340911087,2.27467265,1996.0,1995.9,78.2602]
[1617340911287,0.70527265,1996.0,1995.9,79.8957]
[1617340911486,0.70527265,1996.0,1995.9,1.6355]
[1617340911687,0.70527265,1996.0,1995.9,4.54245]
[1617340912488,0.70527265,1996.0,1995.9,2.90695]
[1617340912888,1.17566866,1996.0,1995.9,2.90695]
[1617340913089,18.90234026,1996.1,1995.9,2.90695]
[1617340913688,21.80929026,1996.1,1995.9,2.90695]
[1617340913888,18.90234026,1996.1,1995.9,2.90695]
[1617340914289,1.17564622,1996.0,1995.9,2.90695]
[1617340915089,0.34424622,1996.0,1995.9,2.90695]
[1617340915489,0.34424622,1996.0,1995.9,63.97485]
[1617340917993,13.37734622,1996.1,1995.9,63.97485]
[1617340919994,15.43782407,1996.1,1995.9,63.97485]
[1617340920394,2.06049813,1996.0,1995.9,63.97485]
[1617340921095,15.43818018,1996.1,1995.9,63.97485]
[1617340921695,18.34513018,1996.1,1995.9,63.97485]
[1617340923200,16.28429622,1996.1,1995.9,63.97485]
[1617340924701,16.28429622,1996.1,1995.9,2.90695]
[1617340924902,16.28429622,1996.1,1994.5,2.0]
[1617340925101,77.6139,1995.9,1994.8,78.6155]
[1617340925301,0.70545258,1995.4,1994.8,78.6155]
[1617340925500,2.23295258,1995.4,1994.8,78.6155]
[1617340925702,0.70545465,1995.3,1994.8,78.6155]
[1617340926303,0.70548517,1995.2,1994.8,78.6155]
[1617340927100,0.70575021,1995.1,1994.8,78.6155]
[1617340927302,0.70574507,1995.2,1994.8,78.6155]
[1617340927703,2.46849343,1995.4,1994.8,78.6155]
[1617340927704,0.70575241,1995.1,1994.8,78.6155]
[1617340928907,0.70574416,1995.2,1994.8,78.6155]
[1617340929706,0.70574416,1995.2,1995.1,2.90695]
[1617340930507,0.7057155,1995.3,1995.1,2.90695]
[1617340931512,2.77827025,1995.8,1995.1,2.90695]
[1617340931513,0.70571303,1995.2,1995.1,2.90695]
[1617340931911,0.70571189,1995.3,1995.1,2.90695]
[1617340932112,2.50946107,1995.5,1995.1,2.90695]
[1617340933914,2.50946107,1995.5,1995.4,2.90695]
[1617340935116,1.56851189,1995.5,1995.4,2.90695]
[1617340935316,2.50916175,1995.5,1995.4,2.90695]
[1617340939020,1.50756175,1995.5,1995.4,2.90695]
[1617340939322,0.56691189,1995.5,1995.4,2.90695]
[1617340939523,1.17617954,1995.6,1995.4,2.90695]
[1617340939721,1.17619336,1995.5,1995.4,2.90695]
[1617340940921,2.68479336,1995.5,1995.4,2.90695]
[1617340941120,1.5086,1995.5,1995.4,2.90695]
[1617340941321,1.88286298,1995.5,1995.4,2.90695]
[1617340942723,0.37426298,1995.5,1995.4,2.90695]
[1617340943124,0.94091102,1995.5,1995.4,2.90695]
[1617340943525,1.55039146,1995.6,1995.4,2.90695]
[1617340943930,0.94060337,1995.5,1995.4,2.90695]
[1617340945427,1.55002066,1995.6,1995.4,2.90695]
[1617340946028,0.54842066,1995.6,1995.4,2.90695]
[1617340946227,0.9406344,1995.5,1995.4,2.90695]
[1617340946629,4.75835,1995.7,1995.4,2.90695]
[1617340947338,0.94062331,1995.5,1995.4,2.90695]
[1617340948228,4.75835,1995.7,1995.4,2.90695]
[1617340949929,4.75835,1995.7,1995.6,2.90695]
[1617340950529,2.90695,1995.7,1995.6,2.90695]
[1617340953032,1.90535,1995.7,1995.6,2.90695]
[1617340959937,3.40155,1995.7,1995.6,2.90695]
[1617340960138,2.39995,1995.7,1995.6,2.90695]
[1617340965150,4.46133916,1995.7,1995.6,2.90695]
[1617340967152,2.79433916,1995.7,1995.6,2.90695]
[1617340968555,2.79433916,1995.7,1995.6,72.31585]
[1617340970255,0.73295,1995.7,1995.6,72.31585]
[1617340971056,4.63268867,1995.8,1995.6,72.31585]
[1617340973457,4.63268867,1995.8,1995.6,2.90695]
[1617340973656,4.63268867,1995.8,1995.6,4.69125]
[1617340974256,2.74605966,1995.8,1995.6,4.69125]
[1617340974656,0.94117631,1995.7,1995.6,4.69125]
[1617340975057,14.1771,1996.0,1995.7,58.5181]
[1617340975058,0.94117488,1995.8,1995.7,58.5181]
[1617340975858,15.35356861,1996.0,1995.7,58.5181]
[1617340976258,15.35356861,1996.0,1995.9,2.90695]
[1617340976660,14.1771,1996.0,1995.9,2.90695]
[1617340977759,15.35361998,1996.0,1995.9,2.90695]
[1617340978166,14.1771,1996.0,1995.9,2.90695]
[1617340978562,16.23964697,1996.0,1995.9,2.90695]
[1617340979966,17.12263683,1996.0,1995.9,2.90695]
[1617340980167,14.1771,1996.0,1994.9,79.6809]
[1617340980367,82.58785,1995.8,1994.9,79.6809]
[1617340980567,0.94168745,1995.3,1994.9,79.6809]
[1617340981167,0.35487396,1995.2,1994.9,79.6809]
[1617340981570,1.11729676,1995.5,1994.9,79.6809]
[1617340982366,1.11729676,1995.5,1994.3,32.0]
[1617340982367,1.11729676,1995.5,1995.4,2.90695]
[1617340982568,2.5721439,1995.7,1995.4,2.90695]
[1617340982770,2.5721439,1995.7,1995.5,71.4326]
[1617340982968,2.06276862,1995.8,1995.5,71.4326]
[1617340983970,2.86436511,1995.9,1995.5,71.4326]
[1617340984269,0.80172085,1995.9,1995.8,2.90695]
[1617340985772,2.86439445,1995.9,1995.8,2.90695]
[1617340985972,17.03879445,1995.9,1995.8,2.90695]
[1617340987375,17.03879445,1995.9,1995.8,85.22995]
[1617340987877,14.97612085,1995.9,1995.8,85.22995]
[1617340988079,14.1744,1995.9,1995.8,85.22995]
[1617340988278,16.23705838,1995.9,1995.8,85.22995]
[1617340988880,14.1744,1995.9,1995.8,85.22995]
[1617340989880,18.76582832,1995.9,1995.8,85.22995]
[1617340990280,16.23855752,1995.9,1995.8,85.22995]
[1617340990982,14.1744,1995.9,1995.8,85.22995]
[1617340991383,16.23853494,1995.9,1995.8,85.22995]
[1617340995182,15.23703494,1995.9,1995.8,85.22995]
[1617340995384,13.1729,1995.9,1995.8,85.22995]
[1617340996683,16.12046575,1995.9,1995.8,85.22995]
[1617340997083,13.1729,1995.9,1995.8,85.22995]
[1617340997383,16.12046352,1995.9,1995.8,85.22995]
[1617340998083,13.1729,1995.9,1995.8,85.22995]
[1617341002185,12.1714,1995.9,1995.8,85.22995]
[1617341003987,16.30343024,1995.9,1995.8,85.22995]
[1617341004686,19.21038024,1995.9,1995.8,85.22995]
[1617341006887,15.07835,1995.9,1995.8,85.22995]
[1617341008488,17.61244694,1995.9,1995.8,85.22995]
[1617341008789,15.07835,1995.9,1995.8,85.22995]
[1617341009287,14.07685,1995.9,1995.8,85.22995]
[1617341014693,15.07285,1995.9,1995.8,85.22995]
[1617341014894,14.07685,1995.9,1995.8,85.22995]
[1617341016097,18.20815431,1995.9,1995.8,85.22995]
[1617341016295,17.20665431,1995.9,1995.8,85.22995]
[1617341016496,13.07535,1995.9,1995.8,85.22995]
[1617341017295,17.20702475,1995.9,1995.8,85.22995]
[1617341017495,13.07535,1995.9,1995.8,85.22995]
[1617341019299,16.0272434,1995.9,1995.8,85.22995]
[1617341019899,13.1202934,1995.9,1995.8,85.22995]
[1617341020099,10.1684,1995.9,1995.8,85.22995]
[1617341020500,13.1202872,1995.9,1995.8,85.22995]
[1617341023212,12.1187872,1995.9,1995.8,85.22995]
[1617341024013,9.1669,1995.9,1995.8,85.22995]
[1617341024714,12.11817633,1995.9,1995.8,85.22995]
[1617341025117,12.11817633,1995.9,1995.8,86.64795]
[1617341025312,12.11817633,1995.9,1995.8,4.32495]
[1617341029118,9.1669,1995.9,1995.8,4.32495]
[1617341030117,8.1654,1995.9,1995.8,4.32495]
[1617341031319,8.1654,1995.9,1995.8,2.90695]
[1617341032120,9.9986,1995.9,1995.8,2.90695]
[1617341032323,12.94947821,1995.9,1995.8,2.90695]
[1617341032620,9.9986,1995.9,1995.8,2.90695]
[1617341032821,12.90555,1995.9,1995.8,2.90695]
[1617341033622,17.03589887,1995.9,1995.8,2.90695]
[1617341034423,12.90555,1995.9,1995.8,2.90695]
[1617341034623,12.90555,1995.9,1995.8,2.79115]
[1617341034823,17.03656308,1995.9,1995.8,2.79115]
[1617341035224,18.80247526,1995.9,1995.8,2.79115]
[1617341036325,22.93347924,1995.9,1995.8,2.79115]
[1617341037227,21.93197924,1995.9,1995.8,2.79115]
[1617341037826,14.89402526,1995.9,1995.8,2.79115]
[1617341038029,13.06082526,1995.9,1995.8,2.79115]
[1617341038827,15.96777526,1995.9,1995.8,2.79115]
[1617341040730,20.09919904,1995.9,1995.8,2.79115]
[1617341042132,15.96777526,1995.9,1995.8,2.79115]
[1617341043733,20.09932304,1995.9,1995.8,2.79115]
[1617341048945,15.96777526,1995.9,1995.8,2.79115]
[1617341050447,20.10118505,1995.9,1995.8,2.79115]
[1617341054452,14.20425979,1995.9,1995.8,2.79115]
[1617341055453,86.10095979,1995.9,1995.8,2.79115]
[1617341056257,92.00159342,1995.9,1995.8,2.79115]
[1617341056456,92.00159342,1995.9,1995.8,2.11745]
[1617341060459,87.86818363,1995.9,1995.8,2.11745]
[1617341060860,92.00197537,1995.9,1995.8,2.11745]
[1617341063866,87.86818363,1995.9,1995.8,2.11745]
[1617341064264,86.86668363,1995.9,1995.8,2.11745]
[1617341064663,83.95973363,1995.9,1995.8,2.11745]
[1617341065065,88.09501932,1995.9,1995.8,2.11745]
[1617341067769,83.95973363,1995.9,1995.8,2.11745]
[1617341068168,84.94683363,1995.9,1995.8,2.11745]
[1617341068569,83.95973363,1995.9,1995.8,2.11745]
[1617341068972,88.09507275,1995.9,1995.8,2.11745]
[1617341071271,87.09357275,1995.9,1995.8,2.11745]
[1617341072375,82.95823363,1995.9,1995.8,2.11745]
[1617341073574,11.06153363,1995.9,1995.8,2.11745]
[1617341074176,5.1609,1995.9,1995.8,2.11745]
[1617341076279,9.29634529,1995.9,1995.8,2.11745]
[1617341078282,8.29484529,1995.9,1995.8,2.11745]
[1617341078882,8.29484529,1995.9,1995.8,76.66685]
[1617341080482,4.1594,1995.9,1995.8,76.66685]
[1617341080883,8.29476654,1995.9,1995.8,2.11745]
[1617341081083,8.29476654,1995.9,1995.8,3.52815]
[1617341082889,4.1594,1995.9,1995.8,3.52815]
[1617341083891,4.1594,1995.9,1995.8,2.11745]
[1617341085296,3.1579,1995.9,1995.8,2.11745]
[1617341087291,3.1579,1995.9,1995.8,4.11745]
[1617341087494,7.29300864,1995.9,1995.8,34.11745]
[1617341087694,7.29300864,1995.9,1995.8,4.11745]
[1617341087892,3.1579,1995.9,1995.8,4.11745]
[1617341088291,3.1579,1995.9,1995.8,2.11745]
[1617341088691,5.22666609,1995.9,1995.8,4.11745]
[1617341088893,3.1579,1995.9,1995.8,4.11745]
[1617341091199,5.22653959,1995.9,1995.8,4.11745]
[1617341092301,4.22503959,1995.9,1995.8,4.11745]
[1617341097209,2.1564,1995.9,1995.8,4.11745]
[1617341097608,3.33510079,1995.9,1995.8,4.11745]
[1617341097808,2.1564,1995.9,1995.8,4.11745]
[1617341098509,3.33510594,1995.9,1995.8,4.11745]
[1617341099309,2.33360594,1995.9,1995.8,4.11745]
[1617341099709,1.1549,1995.9,1995.8,4.11745]
[1617341099909,2.33362588,1995.9,1995.8,4.11745]
[1617341100308,1.1549,1995.9,1995.8,4.11745]
[1617341100711,2.33364171,1995.9,1995.8,4.11745]
[1617341101810,1.1549,1995.9,1995.8,4.11745]
[1617341103212,2.3334682,1995.9,1995.8,4.11745]
[1617341103611,1.1549,1995.9,1995.8,4.11745]
[1617341104613,2.33349246,1995.9,1995.8,4.11745]
[1617341106017,1.17855351,1996.0,1995.8,4.11745]
[1617341106216,1.17855351,1996.0,1995.8,34.11745]
[1617341106417,0.17705351,1996.0,1995.8,34.11745]
[1617341106820,0.94277592,1996.0,1995.8,34.11745]
[1617341107218,0.70702691,1995.9,1995.8,34.11745]
[1617341108331,0.70697088,1996.0,1995.8,34.11745]
[1617341108719,20.3371577,1996.8,1995.8,34.11745]
[1617341108720,0.70693108,1996.1,1995.8,34.11745]
[1617341109519,0.70693108,1996.1,1996.0,2.90695]
[1617341109719,0.70693108,1996.1,1996.0,34.90695]
[1617341110120,0.70689281,1996.2,1996.0,34.90695]
[1617341112222,16.88221607,1996.8,1996.0,34.90695]
[1617341112223,0.7068921,1996.1,1996.0,34.90695]
[1617341112723,0.70687018,1996.2,1996.0,34.90695]
[1617341113323,0.64786375,1996.4,1996.0,34.90695]
[1617341113723,0.64786375,1996.4,1996.3,32.90695]
[1617341113926,0.64786375,1996.4,1996.3,34.90695]
[1617341117023,2.90695,1997.7,1996.3,34.90695]
[1617341117024,2.57931847,1997.2,1996.3,34.90695]
[1617341117224,2.57931847,1997.2,1996.8,81.8688]
[1617341117424,18.86082629,1997.3,1996.8,83.2646]
[1617341117624,18.86082629,1997.3,1997.2,2.10272336]
[1617341120227,18.86082629,1997.3,1997.2,3.83712336]
[1617341120427,17.85932629,1997.3,1997.2,3.83712336]
[1617341120628,16.28982629,1997.3,1997.2,3.83712336]